bitfinex/quotes_ETHUSD_20250622
["timestamp","ask_amount","ask_price","bid_price","bid_amount"]
[1750606146367,22.22384192,2188.9,2187.8,9.89030357]
[1750606146581,4.62598009,2188.8,2187.9,4.5705928]
[1750606146802,8.942,2188.7,2188.1,9.89030357]
[1750606147106,0.05712228,2188.6,2188.1,14.46030688]
[1750606147397,0.95132228,2188.6,2188.1,9.89030357]
[1750606147599,0.05712228,2188.6,2188.2,4.56980124]
[1750606147897,0.05712228,2188.6,2188.1,9.89030357]
[1750606148096,0.3471282,2188.5,2188.2,4.5698637]
[1750606148592,0.3471282,2188.5,2188.1,9.89030357]
[1750606148758,8.919,2188.4,2188.1,9.89030357]
[1750606148958,8.919,2188.4,2188.3,4.56975734]
[1750606149354,0.3471282,2188.5,2188.4,4.56954852]
[1750606149615,9.2511282,2188.5,2188.3,4.56957448]
[1750606149820,9.2511282,2188.5,2188.3,4.56956076]
[1750606150019,9.2511282,2188.5,2188.4,4.56954852]
[1750606150318,9.2511282,2188.5,2188.2,4.56996618]
[1750606150524,0.0571179,2188.4,2188.2,4.56996521]
[1750606150695,0.3471282,2188.5,2188.3,4.56975007]
[1750606150895,0.3471282,2188.5,2188.4,4.56954852]
[1750606151094,8.89,2188.4,2188.2,4.56985522]
[1750606151328,8.89,2188.4,2188.2,4.56984547]
[1750606151624,0.3471282,2188.5,2188.4,4.56954852]
[1750606151829,0.3471282,2188.5,2188.1,14.4604186]
[1750606151994,0.3471282,2188.5,2188.4,4.56954852]
[1750606151995,9.2271282,2188.5,2188.4,4.56954852]
[1750606152195,9.2271282,2188.5,2188.2,4.56996618]
[1750606152394,9.2211282,2188.5,2188.3,4.56965083]
[1750606152598,9.2211282,2188.5,2188.2,4.56986459]
[1750606153202,9.2211282,2188.5,2188.4,4.56954852]
[1750606153522,9.2131282,2188.5,2188.4,4.56954852]
[1750606153909,0.3471282,2188.5,2188.4,14.45985209]
[1750606154285,0.3471282,2188.5,2188.4,15.35919944]
[1750606154522,0.3471282,2188.5,2188.4,14.45985209]
[1750606154931,0.3471282,2188.5,2188.4,25.00985209]
[1750606155151,8.844,2189.1,2188.8,9.89030357]
[1750606155307,0.05710268,2189.0,2188.8,9.89030357]
[1750606155505,8.842,2189.2,2188.8,9.89030357]
[1750606155737,0.05710502,2189.1,2188.8,14.45891313]
[1750606156827,0.05710502,2189.1,2188.8,10.34369727]
[1750606157333,0.94701552,2189.1,2188.6,4.56910213]
[1750606157538,0.05710502,2189.1,2188.7,4.56887983]
[1750606157838,0.05710502,2189.1,2187.1,2.29028242]
[1750606158137,4.56841428,2189.0,2188.2,4.56994196]
[1750606158391,0.05711938,2188.9,2188.2,4.56994296]
[1750606158513,0.97648551,2188.9,2188.2,4.56994296]
[1750606158717,0.97648551,2188.9,2188.3,4.56972402]
[1750606158904,0.97648551,2188.9,2188.2,4.56986312]
[1750606159306,8.813,2188.8,2188.2,4.56986312]
[1750606159505,0.05711936,2188.7,2188.3,4.56971506]
[1750606161707,1.03606791,2188.7,2188.3,4.56971506]
[1750606161907,1.03606791,2188.7,2188.4,10.0]
[1750606162161,1.03606791,2188.7,2188.2,4.56981223]
[1750606162327,1.03606791,2188.7,2188.3,10.0]
[1750606163206,0.05711936,2188.7,2188.3,4.56975314]
[1750606163407,8.782,2188.6,2188.3,4.56975314]
[1750606163602,8.782,2188.6,2188.2,14.56986143]
[1750606163848,8.782,2188.6,2188.3,4.56970655]
[1750606164019,8.782,2188.6,2188.2,14.56986143]
[1750606164020,8.782,2188.6,2188.2,14.56985507]
[1750606164545,8.782,2188.6,2188.3,4.56973678]
[1750606164842,8.782,2188.6,2188.2,14.56986029]
[1750606165005,8.782,2188.6,2188.3,4.56974615]
[1750606165742,8.782,2188.6,2188.2,14.56987809]
[1750606166552,0.05711939,2188.5,2188.2,14.56987809]
[1750606167564,8.782,2188.6,2188.3,4.56975421]
[1750606167764,8.782,2188.6,2188.2,14.56986403]
[1750606168059,0.05711938,2188.5,2188.2,14.56986403]
[1750606169563,0.05711938,2188.5,2188.2,10.0]
[1750606170064,10.98,2189.4,2188.4,9.89030357]
[1750606170251,2.715,2189.2,2188.2,2.63700257]
[1750606170558,0.05711441,2189.1,2188.2,14.56980124]
[1750606170765,4.56829849,2189.0,2188.3,4.56962558]
[1750606170961,0.05711646,2188.9,2188.3,4.56962558]
[1750606171167,8.682,2188.8,2188.2,14.56987232]
[1750606171330,0.05711645,2188.7,2188.3,4.56974444]
[1750606171531,0.05711645,2188.7,2188.3,4.56975734]
[1750606172035,0.05711645,2188.7,2188.4,4.56952949]
[1750606172954,0.05711645,2188.7,2188.3,4.56975476]
[1750606172955,8.677,2188.6,2188.3,4.569662]
[1750606173269,8.677,2188.6,2188.3,4.56975734]
[1750606174470,0.05711959,2188.5,2188.1,0.45723563]
[1750606174641,0.05711959,2188.5,2187.7,1.5031]
[1750606174836,0.05711959,2188.5,2187.9,4.57044843]
[1750606175036,7.34162192,2188.5,2187.7,0.4510542]
[1750606175338,11.392,2188.4,2187.8,4.57080171]
[1750606175548,0.05712768,2188.3,2187.8,4.57080171]
[1750606175848,8.678,2188.2,2188.0,4.57036793]
[1750606177251,8.678,2188.2,2187.9,4.5705703]
[1750606177458,8.678,2188.2,2188.1,4.57017503]
[1750606177845,8.678,2188.2,2188.0,4.57028056]
[1750606178041,0.05712768,2188.1,2187.7,0.45937995]
[1750606178270,0.05712768,2188.1,2187.6,4.5711491]
[1750606178869,0.05712768,2188.1,2187.4,4.57157318]
[1750606179365,2.715,2188.0,2187.4,4.57157318]
[1750606179544,0.05714418,2187.9,2187.4,4.57157318]
[1750606179878,4.57090393,2187.8,2187.4,0.44616996]
[1750606180172,8.73415056,2187.7,2186.9,13.25464264]
[1750606180334,8.677,2187.7,2186.9,17.82731482]
[1750606180662,4.57020409,2188.1,2186.9,13.25464264]
[1750606180663,4.57017503,2188.1,2186.9,13.25464264]
[1750606180864,11.44915887,2188.0,2187.3,4.57173549]
[1750606181074,15.96240446,2188.0,2187.2,17.82660612]
[1750606181363,13.26243013,2187.9,2187.4,4.57143817]
[1750606181662,13.26243013,2187.9,2187.0,14.51389475]
[1750606181663,0.05714519,2187.8,2187.2,4.57205218]
[1750606181865,4.62797774,2187.8,2187.0,9.9415493]
[1750606182165,4.57101065,2187.7,2186.9,4.572573]
[1750606182366,11.45115886,2187.6,2186.9,4.57255929]
[1750606182666,0.8678,2187.5,2186.8,4.57282019]
[1750606182842,0.0571593,2187.4,2186.8,4.57282019]
[1750606183246,0.0571593,2187.4,2186.9,4.57255602]
[1750606183446,0.0571593,2187.4,2186.7,10.4061133]
[1750606183647,0.0571593,2187.4,2186.7,0.464564]
[1750606183846,4.57207637,2187.2,2186.4,14.51518041]
[1750606184061,8.73416667,2187.1,2186.4,14.51518041]
[1750606184243,2.716,2187.0,2186.4,14.51518041]
[1750606184442,0.05716739,2186.9,2186.5,4.5735069]
[1750606184644,0.05716739,2186.9,2186.4,14.51517753]
[1750606184939,0.92496739,2186.9,2186.4,9.9415493]
[1750606185250,0.92496739,2186.9,2186.5,4.57351564]
[1750606185451,8.679,2186.8,2186.5,4.57351932]
[1750606185748,8.73516902,2186.7,2186.4,14.51517215]
[1750606185948,8.678,2186.7,2186.4,10.38962201]
[1750606186147,8.678,2186.7,2186.6,4.57331016]
[1750606186353,10.984,2187.4,2186.7,4.57309342]
[1750606186558,13.00672084,2187.3,2186.7,4.57309342]
[1750606186872,1.55555574,2187.3,2186.8,4.57278489]
[1750606187073,11.394,2187.2,2186.8,4.57278489]
[1750606187274,11.394,2187.2,2186.4,14.96321888]
[1750606187275,0.05716116,2187.1,2186.4,14.96321888]
[1750606187445,0.05716116,2187.1,2186.4,10.38962201]
[1750606187639,5.8121242,2187.1,2186.4,0.44807271]
[1750606187844,1.23983555,2187.1,2186.0,9.9415493]
[1750606188079,4.57326835,2186.7,2186.0,10.40298775]
[1750606188252,11.45118118,2186.6,2186.0,10.40298775]
[1750606188453,11.394,2186.5,2186.1,4.57418345]
[1750606188657,11.45117855,2186.4,2186.1,4.57425195]
[1750606188854,8.678,2186.3,2186.0,14.97738276]
[1750606189057,1.18267439,2187.1,2186.0,12.06280516]
[1750606189245,2.716,2186.8,2186.3,9.9415493]
[1750606189558,0.05717422,2186.7,2186.3,9.9415493]
[1750606189877,8.678,2186.6,2186.3,9.9415493]
[1750606190085,0.05717422,2186.5,2186.0,0.46143845]
[1750606190279,11.394,2186.4,2186.0,4.57442939]
[1750606190482,0.0571822,2186.3,2186.1,14.51588588]
[1750606190682,8.678,2186.3,2186.1,9.9415493]
[1750606190888,8.678,2186.3,2186.1,14.51580686]
[1750606191276,8.73517946,2186.2,2186.1,14.51580686]
[1750606191589,8.678,2186.2,2186.1,14.51580686]
[1750606191879,4.57192048,2187.3,2186.4,4.57371942]
[1750606192078,4.57226616,2187.1,2186.3,4.57383886]
[1750606192283,0.05717409,2187.0,2186.3,4.57390845]
[1750606192481,4.62966429,2187.0,2186.3,4.57390845]
[1750606192785,0.46296643,2186.9,2186.3,4.57390845]
[1750606192961,11.45217399,2186.8,2186.4,9.9415493]
[1750606193161,15.71601047,2187.3,2186.5,4.57351932]
[1750606193162,10.0,2187.2,2186.5,4.57351932]
[1750606193480,11.45117028,2187.1,2186.4,9.9415493]
[1750606193687,11.394,2187.1,2186.7,4.57299178]
[1750606193856,1.14398711,2187.3,2186.8,4.57284283]
[1750606193857,11.45216568,2187.0,2186.8,4.57284283]
[1750606194057,1.14398711,2187.3,2186.7,4.5730105]
[1750606194367,2.717,2187.0,2186.3,9.9415493]
[1750606194566,2.717,2187.0,2186.4,4.5737166]
[1750606194567,0.05717346,2186.9,2186.4,4.5737166]
[1750606194768,8.678,2186.8,2186.4,4.5737166]
[1750606194983,0.05717246,2186.7,2186.4,4.5737166]
[1750606195185,8.678,2186.6,2186.1,1.4117]
[1750606195381,8.678,2186.6,2186.4,14.51517612]
[1750606195581,8.678,2186.6,2186.5,4.57351932]
[1750606195745,8.678,2186.6,2186.4,14.51516998]
[1750606195949,8.677,2186.5,2186.4,14.51516998]
[1750606196652,8.677,2186.5,2186.4,9.9415493]
[1750606196858,8.677,2186.5,2186.4,14.5152778]
[1750606197388,10.0,2187.3,2186.6,4.57327935]
[1750606197591,2.673,2187.0,2186.4,9.9415493]
[1750606197755,0.05717083,2186.9,2186.4,9.9415493]
[1750606197951,8.676,2186.8,2186.7,4.57298967]
[1750606198249,8.676,2186.8,2186.2,24.51560758]
[1750606198469,0.05716906,2186.7,2186.3,4.5737773]
[1750606198868,0.05716906,2186.7,2186.2,14.51559619]
[1750606199059,0.05716906,2186.7,2186.3,4.57389807]
[1750606199558,0.05716906,2186.7,2185.9,0.2268913]
[1750606199559,14.63042152,2186.7,2185.9,0.2268913]
[1750606199788,4.57354419,2186.5,2185.9,0.2268913]
[1750606199989,0.05718893,2186.4,2185.9,0.2268913]
[1750606200364,11.349,2186.3,2185.9,0.2268913]
[1750606200690,4.57456541,2186.0,2185.9,0.2268913]
[1750606200890,4.63176764,2186.0,2185.9,0.2268913]
[1750606201190,1.2189025,2186.0,2185.9,0.2268913]
[1750606201493,9.8939025,2186.0,2185.9,0.2268913]
[1750606201694,1.16169798,2186.0,2185.9,0.2268913]
[1750606201904,11.348,2186.0,2185.9,0.2268913]
[1750606202112,10.989,2186.4,2185.9,0.2268913]
[1750606202259,8.674,2186.3,2185.9,10.1684406]
[1750606202460,2.674,2186.7,2186.2,9.9415493]
[1750606202701,0.0571787,2186.6,2186.4,4.57359651]
[1750606202868,8.675,2186.5,2186.2,4.57398365]
[1750606203206,8.73217827,2186.4,2185.9,10.2268913]
[1750606203354,8.675,2186.3,2186.2,4.57398285]
[1750606203562,10.989,2187.3,2186.1,4.57431803]
[1750606203762,11.61049274,2187.2,2186.5,4.5733716]
[1750606203999,4.77674597,2187.1,2186.0,9.9415493]
[1750606204303,15.92113328,2187.2,2186.0,9.9415493]
[1750606204304,2.33128066,2187.0,2186.5,4.57332534]
[1750606204478,2.33128066,2187.0,2186.5,4.57333091]
[1750606204674,0.26149273,2187.0,2186.8,4.57288176]
[1750606204879,8.674,2186.9,2186.8,4.57282032]
[1750606205097,10.989,2187.3,2186.9,4.57268279]
[1750606205296,0.057161,2187.2,2187.1,4.57209088]
[1750606205525,0.0571559,2187.8,2187.5,4.57142857]
[1750606205825,2.674,2187.7,2187.6,4.57104589]
[1750606206097,0.43740538,2187.8,2187.4,9.9415493]
[1750606206299,0.43740538,2187.8,2187.2,9.9415493]
[1750606206300,0.379032,2187.7,2187.2,9.9415493]
[1750606206504,0.379032,2187.7,2187.6,4.5712196]
[1750606206801,0.379032,2187.7,2187.6,7.92523646]
[1750606207102,0.379032,2187.7,2187.6,18.47523646]
[1750606207795,2.674,2188.6,2188.4,4.56949618]
[1750606207996,10.99,2188.9,2188.5,4.56931618]
[1750606208167,11.346,2188.8,2188.5,4.56931618]
[1750606208362,8.72912082,2188.7,2188.5,4.56931441]
[1750606208688,8.67,2188.6,2188.2,4.56996618]
[1750606208999,2.673,2189.3,2188.4,9.9415493]
[1750606209161,12.67573677,2189.8,2188.4,9.9415493]
[1750606209366,10.0,2189.5,2188.6,4.56909938]
[1750606209588,4.56737117,2189.5,2188.5,4.56924352]
[1750606209792,12.67573677,2189.8,2188.7,9.9415493]
[1750606210007,1.26757368,2189.7,2189.3,9.9415493]
[1750606210166,8.669,2189.7,2189.0,9.9415493]
[1750606210365,7.23965117,2189.8,2189.0,9.9415493]
[1750606210366,2.673,2189.8,2189.0,9.9415493]
[1750606210567,8.669,2189.7,2189.3,9.9415493]
[1750606210783,8.72609399,2189.6,2189.4,4.56742666]
[1750606211001,8.669,2189.5,2189.3,9.9415493]
[1750606211307,0.05709402,2189.4,2189.3,9.9415493]
[1750606211491,0.057098,2190.0,2189.5,4.56714552]
[1750606211822,8.665,2189.9,2189.6,14.50851392]
[1750606212117,2.672,2190.1,2189.6,9.9415493]
[1750606212118,8.72208807,2189.8,2189.6,9.9415493]
[1750606212341,8.665,2189.8,2189.6,9.9415493]
[1750606212636,8.665,2189.8,2189.1,4.56793649]
[1750606212637,0.05708773,2189.7,2189.1,9.9415493]
[1750606212921,8.665,2189.6,2189.4,9.9415493]
[1750606213063,0.05709434,2189.5,2189.4,9.9415493]
[1750606213870,0.05709434,2189.5,2189.4,14.5090107]
[1750606214105,8.665,2189.5,2189.4,14.5090107]
[1750606214301,8.665,2189.5,2189.4,9.9415493]
[1750606214503,8.665,2189.5,2189.4,14.5090107]
[1750606214744,0.8665,2189.8,2189.4,14.5090107]
[1750606214910,8.662,2189.5,2189.4,14.5090107]
[1750606215232,8.661,2189.5,2189.4,9.9415493]
[1750606215504,8.661,2189.5,2189.0,4.56811377]
[1750606215505,8.661,2189.5,2189.1,9.9415493]
[1750606215683,0.05710098,2189.4,2189.1,9.9415493]
[1750606215883,8.661,2189.5,2189.2,4.56775037]
[1750606216101,0.05709681,2189.4,2189.2,4.56775037]
[1750606216545,10.987,2190.4,2189.2,0.57298055]
[1750606216677,2.672,2190.2,2189.7,4.56668124]
[1750606216868,8.71708406,2190.1,2189.6,4.56703075]
[1750606217071,8.66,2190.1,2189.6,4.56703075]
[1750606217325,8.66,2190.1,2189.7,4.56682684]
[1750606217530,8.66,2190.1,2189.8,4.56645111]
[1750606217690,10.987,2190.4,2189.8,4.56660048]
[1750606217876,8.659,2190.0,2189.7,4.56681137]
[1750606218074,8.659,2190.0,2189.6,4.56694496]
[1750606218311,10.987,2190.4,2189.6,4.56694496]
[1750606218312,0.05708479,2189.9,2189.6,4.56694496]
[1750606218518,8.658,2189.9,2189.6,4.56694496]
[1750606218914,8.658,2189.9,2189.5,9.9415493]
[1750606219225,0.0570848,2189.8,2188.8,1.4711]
[1750606219389,0.0570848,2189.8,2188.9,9.9415493]
[1750606219729,8.657,2189.7,2188.9,14.50991824]
[1750606219926,3.59950972,2189.6,2188.9,14.50993869]
[1750606220421,8.657,2189.5,2188.9,14.95709298]
[1750606220620,0.05710124,2189.4,2188.9,14.95709298]
[1750606221192,0.05710124,2189.4,2188.9,10.38867774]
[1750606222242,0.05710124,2189.4,2188.7,4.56880086]
[1750606222525,0.05710124,2189.4,2188.9,9.9415493]
[1750606222526,1.01565221,2189.4,2188.9,9.9415493]
[1750606222715,11.325,2189.3,2188.9,9.9415493]
[1750606222914,0.05710619,2189.2,2188.9,9.9415493]
[1750606223626,0.05710619,2189.2,2188.9,14.50986753]
[1750606223826,0.05710619,2189.2,2189.0,4.56818447]
[1750606224026,0.05710619,2189.2,2188.9,14.50996593]
[1750606224232,0.05710619,2189.2,2188.9,9.9415493]
[1750606224399,0.96537687,2189.2,2188.9,9.9415493]
[1750606224600,0.96537687,2189.2,2188.9,14.51001183]
[1750606224991,10.96537687,2189.2,2188.6,0.45801282]
[1750606225232,0.95855097,2189.4,2188.7,11.4336493]
[1750606225403,2.671,2190.4,2189.2,1.5]
[1750606225607,8.70908999,2190.3,2189.5,9.9415493]
[1750606225807,8.652,2190.3,2189.2,9.9415493]
[1750606226011,10.0,2190.1,2189.0,9.9415493]
[1750606226214,12.36710069,2190.0,2189.0,9.9415493]
[1750606226415,0.05710069,2189.9,2189.3,9.9415493]
[1750606226616,0.05710069,2189.9,2189.3,10.3889064]
[1750606227444,4.62351978,2189.9,2189.0,9.9415493]
[1750606227738,4.56673045,2189.8,2189.0,9.9415493]
[1750606227921,0.5194877,2189.7,2189.0,9.9415493]
[1750606228098,8.649,2189.6,2189.0,9.9415493]
[1750606228307,0.05709986,2189.5,2189.0,9.9415493]
[1750606228700,8.649,2189.4,2189.0,9.9415493]
[1750606228908,1.0,2190.0,2189.3,9.9415493]
[1750606229204,11.36509473,2189.9,2189.3,9.9415493]
[1750606229410,8.649,2189.9,2189.6,9.9415493]
[1750606229742,2.659,2190.2,2189.6,9.9415493]
[1750606229743,8.648,2189.8,2189.6,9.9415493]
[1750606230107,0.05709036,2189.7,2189.3,9.9415493]
[1750606230841,8.648,2189.6,2189.3,9.9415493]
[1750606231142,0.92760578,2189.5,2189.3,9.9415493]
[1750606231345,0.92760578,2189.5,2189.3,10.40820133]
[1750606231643,10.92760578,2189.5,2188.3,1.5]
[1750606231843,10.87050904,2189.5,2188.3,11.4415493]
[1750606232138,10.87050904,2189.5,2188.6,9.9415493]
[1750606232340,13.17272109,2189.4,2188.9,9.9415493]
[1750606232549,0.05710705,2189.3,2188.9,9.9415493]
[1750606232734,8.646,2189.2,2188.9,9.9415493]
[1750606232934,0.05710626,2189.1,2188.9,9.9415493]
[1750606233132,10.977,2189.9,2189.1,4.56808734]
[1750606233454,9.80079706,2189.8,2189.5,9.9415493]
[1750606233685,9.7437,2189.8,2189.5,9.9415493]
[1750606233866,8.70209164,2189.7,2189.5,9.9415493]
[1750606234066,1.0977,2189.8,2189.5,14.50878889]
[1750606234277,8.645,2189.6,2189.5,14.50880209]
[1750606234443,9.51520916,2189.6,2189.2,9.9415493]
[1750606234782,0.05709771,2189.5,2189.0,9.9415493]
[1750606235976,0.05709771,2189.5,2189.0,10.39433823]
[1750606236342,2.659,2189.4,2189.0,10.39433823]
[1750606236676,8.70010493,2189.3,2189.0,10.39433823]
[1750606236857,8.643,2189.3,2189.0,10.39433823]
[1750606237053,9.7732,2189.3,2189.0,10.39433823]
[1750606237248,9.7732,2189.3,2189.0,13.68698524]
[1750606237561,0.87020916,2189.6,2189.0,13.68698524]
[1750606237761,8.6991034,2189.5,2189.3,13.23419631]
[1750606238077,8.642,2189.5,2189.3,13.23419631]
[1750606238286,0.05709956,2189.4,2189.3,13.23419631]
[1750606238471,8.69909956,2189.4,2189.3,13.23419631]
[1750606238672,8.642,2189.4,2189.3,13.23419631]
[1750606238971,9.7721,2189.4,2189.0,13.68511025]
[1750606239159,0.05710438,2189.3,2189.0,13.68511025]
[1750606241487,8.64,2189.2,2189.0,13.68511025]
[1750606241663,8.69710436,2189.1,2189.0,13.68511025]
[1750606241860,8.64,2189.1,2189.0,13.68511025]
[1750606243184,1.1301,2189.4,2189.0,13.68511025]
[1750606243402,15.54360185,2189.9,2189.0,13.68511025]
[1750606243403,10.977,2189.9,2189.3,13.23419631]
[1750606243604,8.6950966,2189.8,2189.3,13.23419631]
[1750606243758,8.638,2189.8,2189.3,13.23419631]
[1750606243959,0.05709795,2189.7,2189.3,13.23419631]
[1750606244150,2.659,2190.1,2189.6,13.23419631]
[1750606244355,8.69408933,2190.0,2189.6,13.23419631]
[1750606244603,8.637,2190.0,2189.6,13.23419631]
[1750606244838,0.05709141,2189.9,2189.3,14.59209631]
[1750606245098,0.05709141,2189.9,2189.6,13.23419631]
[1750606245309,8.636,2189.8,2189.6,13.23419631]
[1750606245457,0.05708904,2189.7,2189.6,13.23419631]
[1750606246390,8.635,2189.7,2189.4,10.0]
[1750606246592,0.05709399,2189.6,2189.4,10.0]
[1750606247414,0.05709399,2189.6,2189.3,13.23419631]
[1750606247974,8.633,2189.5,2189.3,13.23419631]
[1750606248317,0.05709658,2189.4,2189.3,23.23419631]
[1750606248704,0.05709658,2189.4,2189.3,13.23419631]
[1750606249420,0.05709658,2189.4,2189.0,15.01918524]
[1750606249421,3.58510624,2189.4,2189.0,13.23419631]
[1750606249575,8.632,2189.3,2189.0,13.23419631]
[1750606249906,6.33769284,2190.5,2189.1,11.42318969]
[1750606250110,2.659,2190.1,2189.9,13.23419631]
[1750606250269,0.32298509,2190.0,2189.7,13.23419631]
[1750606250708,8.63,2189.9,2189.7,13.23419631]
[1750606251004,0.05708768,2189.8,2189.7,13.23419631]
[1750606252508,8.68708768,2189.8,2189.7,13.23419631]
[1750606252705,8.63,2189.8,2189.7,13.23419631]
[1750606252909,9.7589,2189.8,2189.7,13.23419631]
[1750606253737,9.7589,2189.8,2189.1,1.4002]
[1750606254018,0.05710207,2189.7,2189.3,13.23419631]
[1750606254185,2.71610207,2189.7,2189.6,13.23419631]
[1750606254382,11.34210207,2189.7,2189.6,13.23419631]
[1750606254584,11.285,2189.7,2189.6,13.23419631]
[1750606255420,12.52528858,2190.5,2189.6,13.23419631]
[1750606255421,4.56562511,2190.3,2189.6,13.23419631]
[1750606255618,11.79865197,2190.2,2189.6,13.23419631]
[1750606255817,11.74156251,2190.2,2189.6,13.23419631]
[1750606256134,0.05708945,2190.1,2189.6,13.23419631]
[1750606256821,0.05708945,2190.1,2189.6,17.80117326]
[1750606257338,0.05708945,2190.1,2189.6,13.23419631]
[1750606257536,1.23695465,2190.1,2189.6,17.80119632]
[1750606257835,1.23695465,2190.1,2189.9,13.23419631]
[1750606258600,8.621,2190.0,2189.9,13.23419631]
[1750606259600,2.642,2190.2,2189.9,13.23419631]
[1750606259784,8.67708262,2190.1,2189.9,13.23419631]
[1750606260007,8.62,2190.1,2189.9,13.23419631]
[1750606260310,0.05708261,2190.0,2189.9,13.23419631]
[1750606260733,8.67608261,2190.0,2189.9,13.23419631]
[1750606260937,8.619,2190.0,2189.9,13.23419631]
[1750606261747,4.564677,2190.8,2189.9,13.23419631]
[1750606261748,2.642,2192.0,2190.8,1.4532]
[1750606261948,1.66583747,2192.1,2191.8,13.23419631]
[1750606262120,0.8232202,2192.1,2191.8,13.23419631]
[1750606262457,4.56277427,2191.7,2191.0,13.23419631]
[1750606262604,8.67305337,2191.6,2191.1,0.4645176]
[1750606262807,8.616,2191.6,2191.0,13.23419631]
[1750606263041,4.56167127,2192.2,2191.0,13.23419631]
[1750606263042,30.0,2192.3,2191.0,13.23419631]
[1750606263210,4.56226103,2191.9,2191.0,13.23419631]
[1750606263425,9.12827947,2191.8,2191.0,13.23419631]
[1750606263666,0.4562261,2191.8,2191.3,13.23419631]
[1750606263805,11.31304436,2191.7,2191.6,13.23419631]
[1750606264005,10.0,2192.5,2191.6,13.23419631]
[1750606264244,11.31304044,2192.4,2191.6,13.23419631]
[1750606264544,11.256,2192.4,2191.6,17.79696256]
[1750606264743,1.18263809,2192.3,2191.6,13.23419631]
[1750606264959,11.18263809,2192.3,2191.6,13.23419631]
[1750606265265,11.1256,2192.3,2191.6,13.23419631]
[1750606265477,11.31003989,2192.2,2191.6,13.23419631]
[1750606265635,11.253,2192.2,2191.6,13.69322694]
[1750606265969,1.66967002,2192.1,2191.6,13.69322694]
[1750606267233,10.0,2192.0,2191.3,13.23419631]
[1750606267475,10.0,2191.7,2190.9,13.23419631]
[1750606267676,11.30605575,2191.6,2191.0,4.56412256]
[1750606267873,11.30605575,2191.6,2190.9,13.23419631]
[1750606267874,11.249,2191.6,2190.8,1.4089]
[1750606268182,11.249,2191.6,2191.1,13.23419631]
[1750606268183,1.1249,2191.5,2191.1,13.23419631]
[1750606268346,0.05705314,2191.4,2191.1,13.23419631]
[1750606268553,0.05705314,2191.4,2191.3,13.23419631]
[1750606268872,8.606,2191.4,2191.3,19.20659326]
[1750606269076,4.56152398,2192.3,2191.3,14.64309631]
[1750606269275,10.0,2192.1,2191.7,13.23419631]
[1750606269446,1.06274168,2192.0,2191.7,13.23419631]
[1750606269642,11.246,2191.9,2191.7,13.23419631]
[1750606269846,0.05703749,2191.8,2191.7,13.23419631]
[1750606270078,11.30303749,2191.8,2191.7,13.23419631]
[1750606270278,15.53587513,2192.6,2191.7,13.23419631]
[1750606270584,11.30203488,2192.5,2191.7,17.79682908]
[1750606270794,21.245,2192.5,2191.7,13.23419631]
[1750606270946,10.0,2192.5,2191.7,17.7968481]
[1750606271152,11.245,2192.4,2192.0,13.23419631]
[1750606271395,0.05703097,2192.3,2192.0,13.23419631]
[1750606271983,11.242,2192.2,2192.0,13.23419631]
[1750606272157,0.05703095,2192.1,2192.0,13.23419631]
[1750606272781,11.29803095,2192.1,2192.0,13.23419631]
[1750606273084,11.241,2192.1,2192.0,13.23419631]
[1750606273648,8.6,2192.1,2192.0,13.23419631]
[1750606274180,10.969,2192.5,2192.0,13.23419631]
[1750606274380,10.969,2192.5,2192.0,14.56188617]
[1750606274381,11.29702609,2192.4,2192.0,14.56188617]
[1750606274566,11.24,2192.4,2192.1,13.23419631]
[1750606274743,0.0570248,2192.3,2192.1,13.23419631]
[1750606275871,11.237,2192.2,2192.1,13.68982149]
[1750606277519,10.969,2192.5,2192.1,13.68982149]
[1750606277793,8.596,2192.4,2192.3,4.56126707]
[1750606277947,10.8165,2192.4,2191.3,5.98778847]
[1750606278146,0.05702552,2192.3,2191.7,4.56250426]
[1750606278350,0.05702552,2192.3,2192.1,4.56163394]
[1750606278600,0.05702552,2192.3,2192.2,4.56162758]
[1750606278824,13.609,2192.5,2192.4,13.23419631]
[1750606278962,22.201,2192.5,2192.4,13.23419631]
[1750606279163,2.64,2192.5,2192.4,18.24568823]
[1750606279603,2.59,2192.5,2192.4,18.24568823]
[1750606280027,2.59,2192.5,2192.0,5.98642627]
[1750606280028,2.62418488,2192.5,2192.1,13.23419631]
[1750606280183,1.12151849,2192.4,2192.1,13.23419631]
[1750606280378,8.62418488,2192.3,2192.1,13.23419631]
[1750606280582,8.59,2192.3,2192.1,13.23419631]
[1750606280908,0.03418488,2192.2,2192.1,13.23419631]
[1750606281605,0.03418488,2192.2,2191.8,13.23419631]
[1750606281606,10.03418488,2192.2,2191.8,13.23419631]
[1750606281906,1.61671164,2192.1,2191.8,13.23419631]
[1750606282127,0.03418488,2192.0,2191.4,1.3894]
[1750606282303,8.586,2192.1,2191.7,13.23419631]
[1750606282487,8.586,2192.1,2191.7,17.79675039]
[1750606282804,8.586,2192.1,2192.0,13.23419631]
[1750606284004,8.586,2192.1,2191.8,13.23419631]
[1750606284369,0.03418488,2192.0,2191.8,13.23419631]
[1750606285686,0.03418488,2192.0,2191.5,13.23419631]
[1750606285924,10.99818488,2192.0,2191.3,0.45918832]
[1750606286127,4.56258473,2191.8,2190.9,14.67879631]
[1750606286284,10.0,2191.6,2190.9,14.67879631]
[1750606286488,0.03418488,2191.5,2190.9,13.23419631]
[1750606286721,8.582,2191.4,2190.9,13.23419631]
[1750606286889,0.03418488,2191.3,2191.0,13.23419631]
[1750606287089,2.619,2191.2,2191.0,13.23419631]
[1750606287310,8.61518488,2191.1,2191.0,13.23419631]
[1750606287524,9.70441849,2191.1,2190.8,13.69326646]
[1750606288026,11.199,2191.0,2190.5,13.23419631]
[1750606288187,1.12341849,2191.1,2190.5,13.23419631]
[1750606288188,0.03418488,2190.9,2190.5,13.23419631]
[1750606288387,2.619,2191.0,2190.8,17.79864245]
[1750606288587,0.03418488,2191.8,2190.9,13.23419631]
[1750606288793,10.55,2191.6,2190.9,13.23419631]
[1750606288995,0.03418488,2191.5,2190.9,13.23419631]
[1750606289228,10.0,2191.3,2190.6,13.68179999]
[1750606289529,0.03418488,2191.2,2190.6,13.23419631]
[1750606289733,10.0,2191.0,2190.6,13.23419631]
[1750606290041,0.03418488,2190.9,2190.6,13.23419631]
[1750606290262,2.65318488,2190.9,2190.8,13.23419631]
[1750606290460,2.619,2190.9,2190.8,13.23419631]
[1750606290627,11.198,2190.9,2190.8,13.23419631]
[1750606290825,11.78141164,2190.9,2190.6,0.46117158]